{"text_format":"2","workbook":"xlsx","n_sheets":1,"sheets":["Ark1"],"not_rendered":{"charts":0,"images":0,"macros":0,"external_links":0,"defined_names":0,"comments":0,"pivot_tables":0},"unopened":[],"bounds":{"document_bytes":16777216,"sheet_cells":100000,"run_cost":"one","rows_first":2000,"rows_last":500,"rows_between":2000,"halvings":0,"cell_chars":16384,"cell_head_chars":4096},"cells_cut":0,"cells_raw":0,"read":"whole","date_system":"1900"}

{"sheet":"Ark1","index":0,"n_rows":28,"n_cols":6,"rows_kept":28,"cut":false,"hidden":false,"merged":[]}
[]
["Til "]
["Fra:"]
[]
["Funktion: "]
[]
[]
["Dato'15","Bestemmelsessted","Kørte km.",3.7,"Øvr. Udg.","Bemærkninger"]
[null,null,null,{"$f":"SUM(C9*3.7)","v":0}]
[null,null,null,{"$f":"SUM(C10*3.7)","v":0}]
[null,null,null,0]
[null,null,null,0]
[null,null,null,0]
[null,null,null,0]
[null,null,null,0]
[null,null,null,0]
[null,null,null,0]
[null,null,null,0]
[null,null,null,0]
[null,null,null,0]
[null,null,null,0]
[null,null,null,0]
[null,null,null,0]
[null,null,null,0]
[null,null,null,0]
[null,null,null,0]
[null,null,null,0]
[null,"I ALT - opgjort pr. ",{"$f":"SUM(C9:C27)","v":0},{"$f":"SUM(D9:D27)","v":0},{"$f":"SUM(E9:E27)","v":0},{"$f":"SUM(D28:E28)","v":0}]